{"text_format":"1","workbook":"xlsx","n_sheets":2,"sheets":["JUZGADO DE PAZ","DATO"],"not_rendered":{"charts":0,"images":0,"macros":1,"external_links":0,"defined_names":6,"comments":0,"pivot_tables":0},"unopened":[],"bounds":{"document_bytes":16777216,"sheet_cells":100000,"rows_first":2000,"rows_last":500,"rows_between":2000,"halvings":0,"cell_chars":16384,"cell_head_chars":4096},"cells_cut":0,"cells_raw":0,"read":"whole","date_system":"1900"}

{"sheet":"JUZGADO DE PAZ","index":0,"n_rows":1011,"n_cols":17,"rows_kept":1011,"cut":false,"hidden":false,"merged":[[9,16,10,16],[9,14,10,14],[9,15,10,15],[0,0,0,16],[1,0,1,16],[6,9,6,11],[2,14,2,15],[3,12,8,13],[3,14,4,15],[5,14,6,15],[7,14,8,15],[7,16,8,16],[5,16,6,16],[3,16,4,16],[6,7,6,8],[7,7,7,8],[9,2,10,2],[9,3,10,3],[9,0,10,0],[9,1,10,1],[9,10,9,13],[9,5,9,6],[9,4,10,4],[9,7,9,9],[8,0,8,1],[7,0,7,1],[2,2,2,11],[3,2,3,11],[5,2,5,11],[4,2,4,11],[8,2,8,6],[7,2,7,6],[6,2,6,6],[2,0,2,1],[3,0,3,1],[6,0,6,1],[5,0,5,1],[4,0,4,1],[8,7,8,8]]}
["JUZGADOS DE PAZ DE LA REPÚBLICA DEL PARAGUAY"]
["EXPEDIENTES/CAUSAS"]
["CIRCUNSCRIPCIÓN JUDICIAL: ",null,{"$f":"IF(DATO!D7=0,\"SELECCIONE SU CIRCUNSCRIPCIÓN----->\",IF(DATO!D7=1,\"1° CAPITAL\",IF(DATO!D7=2,\"2° GUAIRÁ\",IF(DATO!D7=3,\"3° ITAPÚA\",IF(DATO!D7=4,\"4° CONCEPCIÓN\",IF(DATO!D7=5,\"5°AMAMBAY\",IF(DATO!D7=6,\"6° ALTO PARANÁ\",IF(DATO!D7=7,\"7° CAAGUAZÚ\",IF(DATO!D7=8,\" 8° ÑEEMBUCÚ\",IF(DATO!D7=9,\" 9° MISIONES\",IF(DATO!D7=10,\"10° PARAGUARÍ\",IF(DATO!D7=11,\"11° CAAZAPÁ\",IF(DATO!D7=12,\"12° SAN PEDRO\",IF(DATO!D7=13,\"13° CORDILLERA\",IF(DATO!D7=14,\"14° PRESIDENTE HAYES\",IF(DATO!D7=15,\"15° CANINDEYÚ\",IF(DATO!D7=16,\"16° CENTRAL\",IF(DATO!D7=17,\"17° BOQUERÓN\",IF(DATO!D7=18,\"18° ALTO PARAGUAY\")))))))))))))))))))","v":"SELECCIONE SU CIRCUNSCRIPCIÓN----->"},null,null,null,null,null,null,null,null,null,"AÑO:",null,"INGRESE FECHA DE CORTE"]
["DISTRITO /CIUDAD:",null,{"$f":"IF(DATO!D7=0,\"SELECCIONE PRIMERO SU CIRCUNSCRIPCIÓN\",IF(DATO!J26=0,\"SELECCIONE SU DISTRITO / CIUDAD---->\",DATO!J29))","v":"SELECCIONE PRIMERO SU CIRCUNSCRIPCIÓN"},null,null,null,null,null,null,null,null,null,"PERIODO - CUATRIMESTRE",null,"1° CUATRIMESTRE"]
["JUZGADO DE PAZ",null,{"$f":"IF(DATO!D13=0,\"SELECCIONE SU JUZGADO----->\",IF(DATO!D13=1,DATO!F25,IF(DATO!D13=2,DATO!F26,IF(DATO!D13=3,DATO!F27,IF(DATO!D13=4,DATO!F28,IF(DATO!D13=4,DATO!F29))))))","v":"SELECCIONE SU JUZGADO----->"}]
["TURNO:",null,{"$f":"IF(DATO!D16=0,\"SELECCIONE SU TURNO----->\",IF(DATO!D16=1,\"UT\",IF(DATO!D16=2,\"1T\",IF(DATO!D16=3,\"2T\",IF(DATO!D16=4,\"3T\",IF(DATO!D16=5,\"4T\",IF(DATO!D16=6,\"5T\",IF(DATO!D16=7,\"6T\"))))))))","v":"SELECCIONE SU TURNO----->"},null,null,null,null,null,null,null,null,null,null,null,"2° CUATRIMESTRE"]
["NOMBRE COMPLETO DEL MAGISTRADO/A:",null,null,null,null,null,null,"VINCULACIÓN:"]
["NOMBRE COMPLETO DEL ACTUARIO/A:",null,null,null,null,null,null,"VINCULACIÓN:",null,null,"SECRETARÍA N°:",null,null,null," 3° CUATRIMESTRE"]
["NOMBRE COMPLETO DEL ACTUARIO/A:",null,null,null,null,null,null,"VINCULACIÓN:",null,null,"SECRETARÍA N°:"]
["N°                             ITEM","CARÁTULA COMPLETA","N° DE EXPEDIENTE /CAUSA N°","AÑO","FUERO","ÚLTIMO ACTO PROCESAL",null,"PENDENCIA",null,null,"MEDIDAS DE MEJOR PROVEER",null,null,null,"AUDIENCIA/S RE AGENDADA/S","CANTIDAD ","SECRETARÍA N°:"]
[null,null,null,null,null,"FECHA","TIPO DE ACTO","FECHA DE PROVIDENCIA DE LLAMADO A AUTOS  ","FECHA DE AUDIENCIA","TIPO DE PENDENCIA","SE DICTÓ MEDIDA DE MEJOR PROVEER","FECHA EN QUE SE DICTÓ LA MEDIDA ","CUMPLIMIENTO\n DE LA MEDIDA","FECHA EN QUE SE CUMPLIÓ LA MEDIDA "]
[1]
[{"$f":"IF(B13<>\"\",A12+1,\"\")","v":""}]
[{"$f":"IF(B14<>\"\",A13+1,\"\")","v":""}]
[""]
[""]
[""]
[""]
[{"$f":"IF(B19<>\"\",A18+1,\"\")","v":""}]
[""]
[""]
[""]
[""]
[""]
[""]
[""]
[""]
[""]
[""]
[""]
[""]
[""]
[""]
[""]
[""]
[""]
[""]
[""]
[""]
[""]
[""]
[""]
[""]
[""]
[""]
[""]
[""]
[""]
[""]
[""]
[""]
[""]
[""]
[""]
[""]
[""]
[""]
[""]
[""]
[""]
[""]
[""]
[""]
[""]
[""]
[""]
[""]
[""]
[""]
[""]
[""]
[""]
[""]
[""]
[""]
[""]
[""]
[{"$f":"IF(B78<>\"\",A77+1,\"\")","v":""}]
[""]
[""]
[""]
[""]
[""]
[""]
[""]
[""]
[""]
[""]
[""]
[""]
[""]
[""]
[""]
[""]
[""]
[""]
[""]
[""]
[""]
[""]
[""]
[""]
[""]
[""]
[""]
[""]
[""]
[""]
[""]
[""]
[""]
[""]
[""]
[""]
[""]
[""]
[""]
[""]
[""]
[""]
[""]
[""]
[""]
[""]
[""]
[""]
[""]
[""]
[""]
[""]
[""]
[""]
[""]
[""]
[""]
[""]
[""]
[""]
[""]
[""]
[""]
[{"$f":"IF(B142<>\"\",A141+1,\"\")","v":""}]
[""]
[""]
[""]
[""]
[""]
[""]
[""]
[""]
[""]
[""]
[""]
[""]
[""]
[""]
[""]
[""]
[""]
[""]
[""]
[""]
[""]
[""]
[""]
[""]
[""]
[""]
[""]
[""]
[""]
[""]
[""]
[""]
[""]
[""]
[""]
[""]
[""]
[""]
[""]
[""]
[""]
[""]
[""]
[""]
[""]
[""]
[""]
[""]
[""]
[""]
[""]
[""]
[""]
[""]
[""]
[""]
[""]
[""]
[""]
[""]
[""]
[""]
[""]
[{"$f":"IF(B206<>\"\",A205+1,\"\")","v":""}]
[""]
[""]
[""]
[""]
[""]
[""]
[""]
[""]
[""]
[""]
[""]
[""]
[""]
[""]
[""]
[""]
[""]
[""]
[""]
[""]
[""]
[""]
[""]
[""]
[""]
[""]
[""]
[""]
[""]
[""]
[""]
[""]
[""]
[""]
[""]
[""]
[""]
[""]
[""]
[""]
[""]
[""]
[""]
[""]
[""]
[""]
[""]
[""]
[""]
[""]
[""]
[""]
[""]
[""]
[""]
[""]
[""]
[""]
[""]
[""]
[""]
[""]
[""]
[{"$f":"IF(B270<>\"\",A269+1,\"\")","v":""}]
[""]
[""]
[""]
[""]
[""]
[""]
[""]
[""]
[""]
[""]
[""]
[""]
[""]
[""]
[""]
[""]
[""]
[""]
[""]
[""]
[""]
[""]
[""]
[""]
[""]
[""]
[""]
[""]
[""]
[""]
[""]
[""]
[""]
[""]
[""]
[""]
[""]
[""]
[""]
[""]
[""]
[""]
[""]
[""]
[""]
[""]
[""]
[""]
[""]
[""]
[""]
[""]
[""]
[""]
[""]
[""]
[""]
[""]
[""]
[""]
[""]
[""]
[""]
[{"$f":"IF(B334<>\"\",A333+1,\"\")","v":""}]
[""]
[""]
[""]
[""]
[""]
[""]
[""]
[""]
[""]
[""]
[""]
[""]
[""]
[""]
[""]
[""]
[""]
[""]
[""]
[""]
[""]
[""]
[""]
[""]
[""]
[""]
[""]
[""]
[""]
[""]
[""]
[""]
[""]
[""]
[""]
[""]
[""]
[""]
[""]
[""]
[""]
[""]
[""]
[""]
[""]
[""]
[""]
[""]
[""]
[""]
[""]
[""]
[""]
[""]
[""]
[""]
[""]
[""]
[""]
[""]
[""]
[""]
[""]
[{"$f":"IF(B398<>\"\",A397+1,\"\")","v":""}]
[""]
[""]
[""]
[""]
[""]
[""]
[""]
[""]
[""]
[""]
[""]
[""]
[""]
[""]
[""]
[""]
[""]
[""]
[""]
[""]
[""]
[""]
[""]
[""]
[""]
[""]
[""]
[""]
[""]
[""]
[""]
[""]
[""]
[""]
[""]
[""]
[""]
[""]
[""]
[""]
[""]
[""]
[""]
[""]
[""]
[""]
[""]
[""]
[""]
[""]
[""]
[""]
[""]
[""]
[""]
[""]
[""]
[""]
[""]
[""]
[""]
[""]
[""]
[{"$f":"IF(B462<>\"\",A461+1,\"\")","v":""}]
[""]
[""]
[""]
[""]
[""]
[""]
[""]
[""]
[""]
[""]
[""]
[""]
[""]
[""]
[""]
[""]
[""]
[""]
[""]
[""]
[""]
[""]
[""]
[""]
[""]
[""]
[""]
[""]
[""]
[""]
[""]
[""]
[""]
[""]
[""]
[""]
[""]
[""]
[""]
[""]
[""]
[""]
[""]
[""]
[""]
[""]
[""]
[""]
[""]
[""]
[""]
[""]
[""]
[""]
[""]
[""]
[""]
[""]
[""]
[""]
[""]
[""]
[""]
[{"$f":"IF(B526<>\"\",A525+1,\"\")","v":""}]
[""]
[""]
[""]
[""]
[""]
[""]
[""]
[""]
[""]
[""]
[""]
[""]
[""]
[""]
[""]
[""]
[""]
[""]
[""]
[""]
[""]
[""]
[""]
[""]
[""]
[""]
[""]
[""]
[""]
[""]
[""]
[""]
[""]
[""]
[""]
[""]
[""]
[""]
[""]
[""]
[""]
[""]
[""]
[""]
[""]
[""]
[""]
[""]
[""]
[""]
[""]
[""]
[""]
[""]
[""]
[""]
[""]
[""]
[""]
[""]
[""]
[""]
[""]
[{"$f":"IF(B590<>\"\",A589+1,\"\")","v":""}]
[""]
[""]
[""]
[""]
[""]
[""]
[""]
[""]
[""]
[""]
[""]
[""]
[""]
[""]
[""]
[""]
[""]
[""]
[""]
[""]
[""]
[""]
[""]
[""]
[""]
[""]
[""]
[""]
[""]
[""]
[""]
[""]
[""]
[""]
[""]
[""]
[""]
[""]
[""]
[""]
[""]
[""]
[""]
[""]
[""]
[""]
[""]
[""]
[""]
[""]
[""]
[""]
[""]
[""]
[""]
[""]
[""]
[""]
[""]
[""]
[""]
[""]
[""]
[{"$f":"IF(B654<>\"\",A653+1,\"\")","v":""}]
[""]
[""]
[""]
[""]
[""]
[""]
[""]
[""]
[""]
[""]
[""]
[""]
[""]
[""]
[""]
[""]
[""]
[""]
[""]
[""]
[""]
[""]
[""]
[""]
[""]
[""]
[""]
[""]
[""]
[""]
[""]
[""]
[""]
[""]
[""]
[""]
[""]
[""]
[""]
[""]
[""]
[""]
[""]
[""]
[""]
[""]
[""]
[""]
[""]
[""]
[""]
[""]
[""]
[""]
[""]
[""]
[""]
[""]
[""]
[""]
[""]
[""]
[""]
[{"$f":"IF(B718<>\"\",A717+1,\"\")","v":""}]
[""]
[""]
[""]
[""]
[""]
[""]
[""]
[""]
[""]
[""]
[""]
[""]
[""]
[""]
[""]
[""]
[""]
[""]
[""]
[""]
[""]
[""]
[""]
[""]
[""]
[""]
[""]
[""]
[""]
[""]
[""]
[""]
[""]
[""]
[""]
[""]
[""]
[""]
[""]
[""]
[""]
[""]
[""]
[""]
[""]
[""]
[""]
[""]
[""]
[""]
[""]
[""]
[""]
[""]
[""]
[""]
[""]
[""]
[""]
[""]
[""]
[""]
[""]
[{"$f":"IF(B782<>\"\",A781+1,\"\")","v":""}]
[""]
[""]
[""]
[""]
[""]
[""]
[""]
[""]
[""]
[""]
[""]
[""]
[""]
[""]
[""]
[""]
[""]
[""]
[""]
[""]
[""]
[""]
[""]
[""]
[""]
[""]
[""]
[""]
[""]
[""]
[""]
[""]
[""]
[""]
[""]
[""]
[""]
[""]
[""]
[""]
[""]
[""]
[""]
[""]
[""]
[""]
[""]
[""]
[""]
[""]
[""]
[""]
[""]
[""]
[""]
[""]
[""]
[""]
[""]
[""]
[""]
[""]
[""]
[{"$f":"IF(B846<>\"\",A845+1,\"\")","v":""}]
[""]
[""]
[""]
[""]
[""]
[""]
[""]
[""]
[""]
[""]
[""]
[""]
[""]
[""]
[""]
[""]
[""]
[""]
[""]
[""]
[""]
[""]
[""]
[""]
[""]
[""]
[""]
[""]
[""]
[""]
[""]
[""]
[""]
[""]
[""]
[""]
[""]
[""]
[""]
[""]
[""]
[""]
[""]
[""]
[""]
[""]
[""]
[""]
[""]
[""]
[""]
[""]
[""]
[""]
[""]
[""]
[""]
[""]
[""]
[""]
[""]
[""]
[""]
[{"$f":"IF(B910<>\"\",A909+1,\"\")","v":""}]
[""]
[""]
[""]
[""]
[""]
[""]
[""]
[""]
[""]
[""]
[""]
[""]
[""]
[""]
[""]
[""]
[""]
[""]
[""]
[""]
[""]
[""]
[""]
[""]
[""]
[""]
[""]
[""]
[""]
[""]
[""]
[""]
[""]
[""]
[""]
[""]
[""]
[""]
[""]
[""]
[""]
[""]
[""]
[""]
[""]
[""]
[""]
[""]
[""]
[""]
[""]
[""]
[""]
[""]
[""]
[""]
[""]
[""]
[""]
[""]
[""]
[""]
[""]
[{"$f":"IF(B974<>\"\",A973+1,\"\")","v":""}]
[""]
[""]
[""]
[""]
[""]
[""]
[""]
[""]
[""]
[""]
[""]
[""]
[""]
[""]
[""]
[""]
[""]
[""]
[""]
[""]
[""]
[""]
[""]
[""]
[""]
[""]
[""]
[""]
[""]
[""]
[""]
[""]
[""]
[""]
[""]
[""]
[""]

{"sheet":"DATO","index":1,"n_rows":614,"n_cols":14,"rows_kept":614,"cut":false,"hidden":true,"merged":[[22,12,24,13],[20,12,21,13],[1,1,2,17]]}
[]
[null,"VALIDACIONES DE LA PLANILLA DE PENDENCIA"]
[]
[]
[]
[null,null,null,"SELEC  / CIRCUNS",null,"VINCULACIÓN",null,"TIPO DE PENDENCIA",null,"TIPO DE ACTO"]
[null,null,null,0,null,"TITULAR",null,"AUTOS PARA RESOLVER ",null,"JUZGADO"]
[null,null,null,null,null,"INTERINO/A",null,"AUTOS PARA SENTENCIA",null,"PARTES"]
[null,null,null,"SELEC / CUATRI",null,"ITINERANTE",null,"AUDIENCIA",null,"OTROS",null,null,"CIVIL Y COMERCIAL","AUTOS PARA RESOLVER"]
[null,null,null,1,null,null,null,null,null,null,null,null,null,"AUTOS PARA SENTENCIA"]
[null,null,null,null,null,"FUERO - CUERPO",null,"OPCIONES SI Y NO",null,null,null,null,"LABORAL","AUTOS PARA RESOLVER"]
[null,null,null,"SELEC / FUERO",null,"CIVIL Y COMERCIAL",null,"SI",null,null,null,null,null,"AUTOS PARA SENTENCIA"]
[null,null,null,0,null,"LABORAL",null,"NO",null,null,null,null,"NIÑEZ Y ADOLESCENCIA","AUTOS PARA RESOLVER"]
[null,null,null,null,null,"NIÑEZ Y ADOLESCENCIA",null,null,null,null,null,null,null,"AUTOS PARA SENTENCIA"]
[null,null,null,"SELEC / TURNO",null,"PENAL",null,null,null,null,null,null,"PENAL","AUDIENCIA"]
[null,null,null,0,null,null,null,"CIRCUNSCRIPCIONES"]
[null,null,null,null,null,null,null,"1° CAPITAL",null,null,null,null,"Ley Especial","Autos para Resolver"]
[null,null,null,null,null,"VINCULACIÓN",null,"2° GUAIRÁ",null,null,null,null,null,"Autos para Sentencia"]
[null,null,null,null,null,"TITULAR",null,"3° ITAPÚA",null,null,null,null,null,"Audiencia"]
[null,null,null,null,null,"INTERINO/A",null,"4° CONCEPCIÓN"]
[null,null,null,null,null,"COMISIONADO/A",null,"5° AMAMBAY",null,null,null,null,"LO QUE ESTA RESALTADO EN AMARILLO YA NO SE UTILIZÁ"]
[null,null,null,null,null,null,null,"6° ALTO PARANÁ"]
[null,null,null,null,null,null,null,"7° CAAGUAZÚ",null,null,null,null,"NO SE ELIMINA LOS DATOS DE ARRIBA, PORQUE SON PARTE DE LA FORMULA PARA EL TIPO DE PENDENCIA SEGÚN EL FUERO"]
[null,null,null,null,null,"JUZGADO DE PAZ - ENCABEZADO",null,"8° ÑEEMBUCÚ"]
[null,null,null,null,null,"CIVIL Y COMERCIAL",null,"9° MISIONES",null,"SELEC / CIUDAD"]
[null,null,null,null,null,"MULTIFUERO CIVIL, COMERCIAL Y LABORAL",null,"10° PARAGUARÍ",null,0]
[null,null,null,null,null,"MULTIFUERO CIVIL, COMERCIAL, LABORAL, NIÑEZ Y ADOLESCENCIA",null,"11° CAAZAPÁ"]
[null,null,null,null,null,"MULTIFUERO CIVIL, COMERCIAL, LABORAL, NIÑEZ  Y ADOLESCENCIA, Y PENAL",null,"12° SAN PEDRO",null,"TRAE LA CIUDAD "]
[null,null,null,null,null,null,null,"13° CORDILLERA",null,{"$f":"IFERROR(INDEX(DATO!$H$38:$H$614, SMALL(IF(DATO!$G$38:$G$614=DATO!D7, ROW(DATO!$G$38:$G$614)-ROW(DATO!$G$38)+1), DATO!J26)), \"\")","v":""}]
[null,null,null,null,null,null,null,"14° PRESIDENTE HAYES"]
[null,null,null,null,null,null,null,"15° CANINDEYÚ"]
[null,null,null,null,null,null,null,"16° CENTRAL"]
[null,null,null,null,null,null,null,"17° BOQUERÓN"]
[null,null,null,null,null,null,null,"18° ALTO PARAGUAY"]
[]
[]
[null,null,null,null,null,null,"N°","LOCALIDAD / CIUDAD","Columna1","Columna2"]
[null,null,null,null,null,null,1,"LA CATEDRAL - ASUNCIÓN",1]
[null,null,null,null,null,null,1,"LA ENCARNACIÓN - ASUNCIÓN",2]
[null,null,null,null,null,null,1,"LA RECOLETA - ASUNCIÓN",3]
[null,null,null,null,null,null,1,"SAN ROQUE - ASUNCIÓN",4]
[null,null,null,null,null,null,1,"SANTÍSIMA TRINIDAD - ASUNCIÓN",5]
[null,null,null,null,null,null,1,"VILLA MORRA - ASUNCIÓN",6]
[null,null,null,null,null,null,1,"HACER CLIC AL BOTÓN ABAJO 1 VEZ",7]
[null,null,null,null,null,null,1,"HACER CLIC AL BOTÓN ABAJO 2 VECES",8]
[null,null,null,null,null,null,1,"HACER CLIC AL BOTÓN ABAJO 3 VECES",9]
[null,null,null,null,null,null,1,"HACER CLIC AL BOTÓN ABAJO 4 VECES",10]
[null,null,null,null,null,null,1,"HACER CLIC AL BOTÓN ABAJO 5 VECES",11]
[null,null,null,null,null,null,1,"HACER CLIC AL BOTÓN ABAJO 6 VECES",12]
[null,null,null,null,null,null,1,"HACER CLIC AL BOTÓN ABAJO 7 VECES",13]
[null,null,null,null,null,null,1,"HACER CLIC AL BOTÓN ABAJO 8 VECES",14]
[null,null,null,null,null,null,1,"HACER CLIC AL BOTÓN ABAJO 9 VECES",15]
[null,null,null,null,null,null,1,"HACER CLIC AL BOTÓN ABAJO 10 VECES",16]
[null,null,null,null,null,null,1,"HACER CLIC AL BOTÓN ABAJO 11 VECES",17]
[null,null,null,null,null,null,1,"HACER CLIC AL BOTÓN ABAJO 12 VECES",18]
[null,null,null,null,null,null,1,"HACER CLIC AL BOTÓN ABAJO 13 VECES",19]
[null,null,null,null,null,null,1,"HACER CLIC AL BOTÓN ABAJO 14 VECES",20]
[null,null,null,null,null,null,1,"HACER CLIC AL BOTÓN ABAJO 15 VECES",21]
[null,null,null,null,null,null,1,"HACER CLIC AL BOTÓN ABAJO 16 VECES",22]
[null,null,null,null,null,null,1,"HACER CLIC AL BOTÓN ABAJO 17 VECES",23]
[null,null,null,null,null,null,1,"HACER CLIC AL BOTÓN ABAJO 18 VECES",24]
[null,null,null,null,null,null,1,"HACER CLIC AL BOTÓN ABAJO 19 VECES",25]
[null,null,null,null,null,null,1,"HACER CLIC AL BOTÓN ABAJO 20 VECES",26]
[null,null,null,null,null,null,1,"HACER CLIC AL BOTÓN ABAJO 21 VECES",27]
[null,null,null,null,null,null,1,"HACER CLIC AL BOTÓN ABAJO 22 VECES",28]
[null,null,null,null,null,null,1,"HACER CLIC AL BOTÓN ABAJO 23 VECES",29]
[null,null,null,null,null,null,1,"HACER CLIC AL BOTÓN ABAJO 24 VECES",30]
[null,null,null,null,null,null,1,"HACER CLIC AL BOTÓN ABAJO 25 VECES",31]
[null,null,null,null,null,null,1,"HACER CLIC AL BOTÓN ABAJO 26 VECES",32]
[null,null,null,null,null,null,2,"BORJA",1]
[null,null,null,null,null,null,2,"COLONIA INDEPENDENCIA",2]
[null,null,null,null,null,null,2,"CORONEL MARTÍNEZ",3]
[null,null,null,null,null,null,2,"DOCTOR JAMES BOTTRELL",4]
[null,null,null,null,null,null,2,"FÉLIX PÉREZ CARDOZO",5]
[null,null,null,null,null,null,2,"GENERAL EUGENIO ALEJANDRINO GARAY ",6]
[null,null,null,null,null,null,2,"ITAPÉ",7]
[null,null,null,null,null,null,2,"ITURBE",8]
[null,null,null,null,null,null,2,"JOSÉ FASSARDI",9]
[null,null,null,null,null,null,2,"MAURICIO JOSÉ TROCHE",10]
[null,null,null,null,null,null,2,"MBOCAYATY",11]
[null,null,null,null,null,null,2,"NATALICIO TALAVERA",12]
[null,null,null,null,null,null,2,"ÑUMÍ",13]
[null,null,null,null,null,null,2,"PASO YOBAI",14]
[null,null,null,null,null,null,2,"SAN SALVADOR ",15]
[null,null,null,null,null,null,2,"TEBICUARY",16]
[null,null,null,null,null,null,2,"VILLARRICA",17]
[null,null,null,null,null,null,2,"YATAITY",18]
[null,null,null,null,null,null,2,"HACER CLIC AL BOTÓN ABAJO 1 VEZ",19]
[null,null,null,null,null,null,2,"HACER CLIC AL BOTÓN ABAJO 2 VECES",20]
[null,null,null,null,null,null,2,"HACER CLIC AL BOTÓN ABAJO 3 VECES",21]
[null,null,null,null,null,null,2,"HACER CLIC AL BOTÓN ABAJO 4 VECES",22]
[null,null,null,null,null,null,2,"HACER CLIC AL BOTÓN ABAJO 5 VECES",23]
[null,null,null,null,null,null,2,"HACER CLIC AL BOTÓN ABAJO 6 VECES",24]
[null,null,null,null,null,null,2,"HACER CLIC AL BOTÓN ABAJO 7 VECES",25]
[null,null,null,null,null,null,2,"HACER CLIC AL BOTÓN ABAJO 8 VECES",26]
[null,null,null,null,null,null,2,"HACER CLIC AL BOTÓN ABAJO 9 VECES",27]
[null,null,null,null,null,null,2,"HACER CLIC AL BOTÓN ABAJO 10 VECES",28]
[null,null,null,null,null,null,2,"HACER CLIC AL BOTÓN ABAJO 11 VECES",29]
[null,null,null,null,null,null,2,"HACER CLIC AL BOTÓN ABAJO 12 VECES",30]
[null,null,null,null,null,null,2,"HACER CLIC AL BOTÓN ABAJO 13 VECES",31]
[null,null,null,null,null,null,2,"HACER CLIC AL BOTÓN ABAJO 14 VECES",32]
[null,null,null,null,null,null,3,"ALTO VERÁ",1]
[null,null,null,null,null,null,3,"BARRIO SAN ISIDRO - ENCARNACIÓN",2]
[null,null,null,null,null,null,3,"BELLA VISTA",3]
[null,null,null,null,null,null,3,"CAMBYRETA",4]
[null,null,null,null,null,null,3,"CAPITÁN MEZA",5]
[null,null,null,null,null,null,3,"CAPITÁN MIRANDA",6]
[null,null,null,null,null,null,3,"CARLOS ANTONIO LÓPEZ",7]
[null,null,null,null,null,null,3,"CARMEN DEL PARANÁ",8]
[null,null,null,null,null,null,3,"CORONEL BOGADO",9]
[null,null,null,null,null,null,3,"DOCTOR FRANCISCO ESCULÍES - ENCARNACIÓN",10]
[null,null,null,null,null,null,3,"EDELIRA",11]
[null,null,null,null,null,null,3,"ENCARNACIÓN",12]
[null,null,null,null,null,null,3,"FRAM",13]
[null,null,null,null,null,null,3,"GENERAL ARTIGAS",14]
[null,null,null,null,null,null,3,"GENERAL DELGADO",15]
[null,null,null,null,null,null,3,"HOHENAU",16]
[null,null,null,null,null,null,3,"ITAPÚA POTY",17]
[null,null,null,null,null,null,3,"JESÚS",18]
[null,null,null,null,null,null,3,"JOSÉ LEANDRO OVIEDO",19]
[null,null,null,null,null,null,3,"LA PAZ",20]
[null,null,null,null,null,null,3,"MAYOR JULIO DIONISIO OTAÑO",21]
[null,null,null,null,null,null,3,"NATALIO",22]
[null,null,null,null,null,null,3,"NUEVA ALBORADA",23]
[null,null,null,null,null,null,3,"OBLIGADO",24]
[null,null,null,null,null,null,3,"PIRAPÓ",25]
[null,null,null,null,null,null,3,"SAN COSME Y DAMIÁN",26]
[null,null,null,null,null,null,3,"SAN JUAN DEL PARANÁ",27]
[null,null,null,null,null,null,3,"SAN PEDRO DEL PARANÁ",28]
[null,null,null,null,null,null,3,"SAN RAFAEL DEL PARANÁ",29]
[null,null,null,null,null,null,3,"TOMÁS ROMERO PEREIRA",30]
[null,null,null,null,null,null,3,"TRINIDAD",31]
[null,null,null,null,null,null,3,"YATYTAY",32]
[null,null,null,null,null,null,4,"ARROYITO",1]
[null,null,null,null,null,null,4,"AZOTE´Y",2]
[null,null,null,null,null,null,4,"BELÉN",3]
[null,null,null,null,null,null,4,"CONCEPCIÓN",4]
[null,null,null,null,null,null,4,"HORQUETA",5]
[null,null,null,null,null,null,4,"LORETO Y PASO HORQUETA",6]
[null,null,null,null,null,null,4,"PASO BARRETO",7]
[null,null,null,null,null,null,4,"SAN ALFREDO",8]
[null,null,null,null,null,null,4,"SAN CARLOS DEL APA",9]
[null,null,null,null,null,null,4,"SARGENTO JOSÉ FÉLIX LÓPEZ",10]
[null,null,null,null,null,null,4,"VALLEMI",11]
[null,null,null,null,null,null,4,"YBY YAÚ",12]
[null,null,null,null,null,null,4,"HACER CLIC AL BOTÓN ABAJO 1 VEZ",13]
[null,null,null,null,null,null,4,"HACER CLIC AL BOTÓN ABAJO 2 VECES",14]
[null,null,null,null,null,null,4,"HACER CLIC AL BOTÓN ABAJO 3 VECES",15]
[null,null,null,null,null,null,4,"HACER CLIC AL BOTÓN ABAJO 4 VECES",16]
[null,null,null,null,null,null,4,"HACER CLIC AL BOTÓN ABAJO 5 VECES",17]
[null,null,null,null,null,null,4,"HACER CLIC AL BOTÓN ABAJO 6 VECES",18]
[null,null,null,null,null,null,4,"HACER CLIC AL BOTÓN ABAJO 7 VECES",19]
[null,null,null,null,null,null,4,"HACER CLIC AL BOTÓN ABAJO 8 VECES",20]
[null,null,null,null,null,null,4,"HACER CLIC AL BOTÓN ABAJO 9 VECES",21]
[null,null,null,null,null,null,4,"HACER CLIC AL BOTÓN ABAJO 10 VECES",22]
[null,null,null,null,null,null,4,"HACER CLIC AL BOTÓN ABAJO 11 VECES",23]
[null,null,null,null,null,null,4,"HACER CLIC AL BOTÓN ABAJO 12 VECES",24]
[null,null,null,null,null,null,4,"HACER CLIC AL BOTÓN ABAJO 13 VECES",25]
[null,null,null,null,null,null,4,"HACER CLIC AL BOTÓN ABAJO 14 VECES",26]
[null,null,null,null,null,null,4,"HACER CLIC AL BOTÓN ABAJO 15 VECES",27]
[null,null,null,null,null,null,4,"HACER CLIC AL BOTÓN ABAJO 16 VECES",28]
[null,null,null,null,null,null,4,"HACER CLIC AL BOTÓN ABAJO 17 VECES",29]
[null,null,null,null,null,null,4,"HACER CLIC AL BOTÓN ABAJO 18 VECES",30]
[null,null,null,null,null,null,4,"HACER CLIC AL BOTÓN ABAJO 19 VECES",31]
[null,null,null,null,null,null,4,"HACER CLIC AL BOTÓN ABAJO 20 VECES",32]
[null,null,null,null,null,null,5,"BELLA VISTA NORTE",1]
[null,null,null,null,null,null,5,"CAPITÁN BADO",2]
[null,null,null,null,null,null,5,"CERRO CORA",3]
[null,null,null,null,null,null,5,"KARAPAÍ",4]
[null,null,null,null,null,null,5,"PEDRO JUAN CABALLERO",5]
[null,null,null,null,null,null,5,"ZANJA PYTÁ",6]
[null,null,null,null,null,null,5,"HACER CLIC AL BOTÓN ABAJO 1 VEZ",7]
[null,null,null,null,null,null,5,"HACER CLIC AL BOTÓN ABAJO 2 VECES",8]
[null,null,null,null,null,null,5,"HACER CLIC AL BOTÓN ABAJO 3 VECES",9]
[null,null,null,null,null,null,5,"HACER CLIC AL BOTÓN ABAJO 4 VECES",10]
[null,null,null,null,null,null,5,"HACER CLIC AL BOTÓN ABAJO 5 VECES",11]
[null,null,null,null,null,null,5,"HACER CLIC AL BOTÓN ABAJO 6 VECES",12]
[null,null,null,null,null,null,5,"HACER CLIC AL BOTÓN ABAJO 7 VECES",13]
[null,null,null,null,null,null,5,"HACER CLIC AL BOTÓN ABAJO 8 VECES",14]
[null,null,null,null,null,null,5,"HACER CLIC AL BOTÓN ABAJO 9 VECES",15]
[null,null,null,null,null,null,5,"HACER CLIC AL BOTÓN ABAJO 10 VECES",16]
[null,null,null,null,null,null,5,"HACER CLIC AL BOTÓN ABAJO 11 VECES",17]
[null,null,null,null,null,null,5,"HACER CLIC AL BOTÓN ABAJO 12 VECES",18]
[null,null,null,null,null,null,5,"HACER CLIC AL BOTÓN ABAJO 13 VECES",19]
[null,null,null,null,null,null,5,"HACER CLIC AL BOTÓN ABAJO 14 VECES",20]
[null,null,null,null,null,null,5,"HACER CLIC AL BOTÓN ABAJO 15 VECES",21]
[null,null,null,null,null,null,5,"HACER CLIC AL BOTÓN ABAJO 16 VECES",22]
[null,null,null,null,null,null,5,"HACER CLIC AL BOTÓN ABAJO 17 VECES",23]
[null,null,null,null,null,null,5,"HACER CLIC AL BOTÓN ABAJO 18 VECES",24]
[null,null,null,null,null,null,5,"HACER CLIC AL BOTÓN ABAJO 19 VECES",25]
[null,null,null,null,null,null,5,"HACER CLIC AL BOTÓN ABAJO 20 VECES",26]
[null,null,null,null,null,null,5,"HACER CLIC AL BOTÓN ABAJO 21 VECES",27]
[null,null,null,null,null,null,5,"HACER CLIC AL BOTÓN ABAJO 22 VECES",28]
[null,null,null,null,null,null,5,"HACER CLIC AL BOTÓN ABAJO 23 VECES",29]
[null,null,null,null,null,null,5,"HACER CLIC AL BOTÓN ABAJO 24 VECES",30]
[null,null,null,null,null,null,5,"HACER CLIC AL BOTÓN ABAJO 25 VECES",31]
[null,null,null,null,null,null,5,"HACER CLIC AL BOTÓN ABAJO 26 VECES",32]
[null,null,null,null,null,null,6,"CIUDAD DEL ESTE",1]
[null,null,null,null,null,null,6,"DOCTOR JUAN LEÓN MALLORQUÍN",2]
[null,null,null,null,null,null,6,"DOCTOR RAÚL PEÑA",3]
[null,null,null,null,null,null,6,"DOMINGO MARTÍNEZ DE IRALA",4]
[null,null,null,null,null,null,6,"HERNANDARIAS",5]
[null,null,null,null,null,null,6,"IRUÑA",6]
[null,null,null,null,null,null,6,"ITAKYRY",7]
[null,null,null,null,null,null,6,"JUAN EMILIO O´LEARY",8]
[null,null,null,null,null,null,6,"LOS CEDRALES",9]
[null,null,null,null,null,null,6,"MBARACAYÚ",10]
[null,null,null,null,null,null,6,"MINGA GUAZÚ",11]
[null,null,null,null,null,null,6,"MINGA PORÁ",12]
[null,null,null,null,null,null,6,"NARANJAL",13]
[null,null,null,null,null,null,6,"ÑACUNDAY",14]
[null,null,null,null,null,null,6,"PRESIDENTE FRANCO",15]
[null,null,null,null,null,null,6,"SAN ALBERTO",16]
[null,null,null,null,null,null,6,"SAN CRISTÓBAL",17]
[null,null,null,null,null,null,6,"SANTA FE DEL PARANÁ",18]
[null,null,null,null,null,null,6,"SANTA RITA",19]
[null,null,null,null,null,null,6,"SANTA ROSA DEL MONDAY",20]
[null,null,null,null,null,null,6,"TAVAPY",21]
[null,null,null,null,null,null,6,"YGUAZÚ",22]
[null,null,null,null,null,null,6,"HACER CLIC AL BOTÓN ABAJO 1 VEZ",23]
[null,null,null,null,null,null,6,"HACER CLIC AL BOTÓN ABAJO 2 VECES",24]
[null,null,null,null,null,null,6,"HACER CLIC AL BOTÓN ABAJO 3 VECES",25]
[null,null,null,null,null,null,6,"HACER CLIC AL BOTÓN ABAJO 4 VECES",26]
[null,null,null,null,null,null,6,"HACER CLIC AL BOTÓN ABAJO 5 VECES",27]
[null,null,null,null,null,null,6,"HACER CLIC AL BOTÓN ABAJO 6 VECES",28]
[null,null,null,null,null,null,6,"HACER CLIC AL BOTÓN ABAJO 7 VECES",29]
[null,null,null,null,null,null,6,"HACER CLIC AL BOTÓN ABAJO 8 VECES",30]
[null,null,null,null,null,null,6,"HACER CLIC AL BOTÓN ABAJO 9 VECES",31]
[null,null,null,null,null,null,6,"HACER CLIC AL BOTÓN ABAJO 10 VECES",32]
[null,null,null,null,null,null,7,"CAAGUAZÚ",1]
[null,null,null,null,null,null,7,"CARAYAÓ",2]
[null,null,null,null,null,null,7,"CORONEL OVIEDO",3]
[null,null,null,null,null,null,7,"DOCTOR CECILIO BÁEZ",4]
[null,null,null,null,null,null,7,"DOCTOR DOMINGO MONTANARO",5]
[null,null,null,null,null,null,7,"DOCTOR JUAN MANUEL FRUTOS ",6]
[null,null,null,null,null,null,7,"JOSÉ DOMINGO OCAMPOS",7]
[null,null,null,null,null,null,7,"JUAN EULOGIO ESTIGARRIBIA",8]
[null,null,null,null,null,null,7,"LA PASTORA",9]
[null,null,null,null,null,null,7,"MARISCAL FRANCISCO SOLANO LÓPEZ",10]
[null,null,null,null,null,null,7,"NUEVA LONDRES",11]
[null,null,null,null,null,null,7,"NUEVA TOLEDO",12]
[null,null,null,null,null,null,7,"R.I. 3 CORRALES ",13]
[null,null,null,null,null,null,7,"RAÚL ARSENIO OVIEDO",14]
[null,null,null,null,null,null,7,"REPATRIACIÓN",15]
[null,null,null,null,null,null,7,"SAN JOAQUÍN",16]
[null,null,null,null,null,null,7,"SAN JOSÉ DE LOS ARROYOS",17]
[null,null,null,null,null,null,7,"SANTA ROSA DEL MBUTUY",18]
[null,null,null,null,null,null,7,"SIMÓN BOLÍVAR ",19]
[null,null,null,null,null,null,7,"TEMBIAPORA",20]
[null,null,null,null,null,null,7,"3 DE FEBRERO",21]
[null,null,null,null,null,null,7,"VAQUERÍA",22]
[null,null,null,null,null,null,7,"YHU",23]
[null,null,null,null,null,null,7,"HACER CLIC AL BOTÓN ABAJO 1 VEZ",24]
[null,null,null,null,null,null,7,"HACER CLIC AL BOTÓN ABAJO 2 VECES",25]
[null,null,null,null,null,null,7,"HACER CLIC AL BOTÓN ABAJO 3 VECES",26]
[null,null,null,null,null,null,7,"HACER CLIC AL BOTÓN ABAJO 4 VECES",27]
[null,null,null,null,null,null,7,"HACER CLIC AL BOTÓN ABAJO 5 VECES",28]
[null,null,null,null,null,null,7,"HACER CLIC AL BOTÓN ABAJO 6 VECES",29]
[null,null,null,null,null,null,7,"HACER CLIC AL BOTÓN ABAJO 7 VECES",30]
[null,null,null,null,null,null,7,"HACER CLIC AL BOTÓN ABAJO 8 VECES",31]
[null,null,null,null,null,null,7,"HACER CLIC AL BOTÓN ABAJO 9 VECES",32]
[null,null,null,null,null,null,8,"ALBERDI",1]
[null,null,null,null,null,null,8,"CERRITO",2]
[null,null,null,null,null,null,8,"DESMOCHADOS",3]
[null,null,null,null,null,null,8,"GENERAL JOSÉ EDUVIGIS DÍAZ",4]
[null,null,null,null,null,null,8,"GUAZUCUA",5]
[null,null,null,null,null,null,8,"HUMAITÁ",6]
[null,null,null,null,null,null,8,"ISLA UMBU",7]
[null,null,null,null,null,null,8,"LAURELES",8]
[null,null,null,null,null,null,8,"MAYOR MARTÍNEZ",9]
[null,null,null,null,null,null,8,"PASO DE PATRIA",10]
[null,null,null,null,null,null,8,"PILAR",11]
[null,null,null,null,null,null,8,"SAN JUAN BAUTISTA DE ÑEEMBUCÚ",12]
[null,null,null,null,null,null,8,"TACUARAS",13]
[null,null,null,null,null,null,8,"VILLA FRANCA",14]
[null,null,null,null,null,null,8,"VILLA OLIVA ",15]
[null,null,null,null,null,null,8,"VILLALBIN",16]
[null,null,null,null,null,null,8,"HACER CLIC AL BOTÓN ABAJO 1 VEZ",17]
[null,null,null,null,null,null,8,"HACER CLIC AL BOTÓN ABAJO 2 VECES",18]
[null,null,null,null,null,null,8,"HACER CLIC AL BOTÓN ABAJO 3 VECES",19]
[null,null,null,null,null,null,8,"HACER CLIC AL BOTÓN ABAJO 4 VECES",20]
[null,null,null,null,null,null,8,"HACER CLIC AL BOTÓN ABAJO 5 VECES",21]
[null,null,null,null,null,null,8,"HACER CLIC AL BOTÓN ABAJO 6 VECES",22]
[null,null,null,null,null,null,8,"HACER CLIC AL BOTÓN ABAJO 7 VECES",23]
[null,null,null,null,null,null,8,"HACER CLIC AL BOTÓN ABAJO 8 VECES",24]
[null,null,null,null,null,null,8,"HACER CLIC AL BOTÓN ABAJO 9 VECES",25]
[null,null,null,null,null,null,8,"HACER CLIC AL BOTÓN ABAJO 10 VECES",26]
[null,null,null,null,null,null,8,"HACER CLIC AL BOTÓN ABAJO 11 VECES",27]
[null,null,null,null,null,null,8,"HACER CLIC AL BOTÓN ABAJO 12 VECES",28]
[null,null,null,null,null,null,8,"HACER CLIC AL BOTÓN ABAJO 13 VECES",29]
[null,null,null,null,null,null,8,"HACER CLIC AL BOTÓN ABAJO 14 VECES",30]
[null,null,null,null,null,null,8,"HACER CLIC AL BOTÓN ABAJO 15 VECES",31]
[null,null,null,null,null,null,8,"HACER CLIC AL BOTÓN ABAJO 16 VECES",32]
[null,null,null,null,null,null,9,"AYOLAS",1]
[null,null,null,null,null,null,9,"SAN IGNACIO GUAZÚ",2]
[null,null,null,null,null,null,9,"SAN JUAN BAUTISTA",3]
[null,null,null,null,null,null,9,"SAN MIGUEL",4]
[null,null,null,null,null,null,9,"SANTA MARÍA",5]
[null,null,null,null,null,null,9,"SAN PATRICIO",6]
[null,null,null,null,null,null,9,"SANTA ROSA",7]
[null,null,null,null,null,null,9,"SANTIAGO",8]
[null,null,null,null,null,null,9,"VILLA FLORIDA",9]
[null,null,null,null,null,null,9,"YABEBYRY",10]
[null,null,null,null,null,null,9,"HACER CLIC AL BOTÓN ABAJO 1 VEZ",11]
[null,null,null,null,null,null,9,"HACER CLIC AL BOTÓN ABAJO 2 VECES",12]
[null,null,null,null,null,null,9,"HACER CLIC AL BOTÓN ABAJO 3 VECES",13]
[null,null,null,null,null,null,9,"HACER CLIC AL BOTÓN ABAJO 4 VECES",14]
[null,null,null,null,null,null,9,"HACER CLIC AL BOTÓN ABAJO 5 VECES",15]
[null,null,null,null,null,null,9,"HACER CLIC AL BOTÓN ABAJO 6 VECES",16]
[null,null,null,null,null,null,9,"HACER CLIC AL BOTÓN ABAJO 7 VECES",17]
[null,null,null,null,null,null,9,"HACER CLIC AL BOTÓN ABAJO 8 VECES",18]
[null,null,null,null,null,null,9,"HACER CLIC AL BOTÓN ABAJO 9 VECES",19]
[null,null,null,null,null,null,9,"HACER CLIC AL BOTÓN ABAJO 10 VECES",20]
[null,null,null,null,null,null,9,"HACER CLIC AL BOTÓN ABAJO 11 VECES",21]
[null,null,null,null,null,null,9,"HACER CLIC AL BOTÓN ABAJO 12 VECES",22]
[null,null,null,null,null,null,9,"HACER CLIC AL BOTÓN ABAJO 13 VECES",23]
[null,null,null,null,null,null,9,"HACER CLIC AL BOTÓN ABAJO 14 VECES",24]
[null,null,null,null,null,null,9,"HACER CLIC AL BOTÓN ABAJO 15 VECES",25]
[null,null,null,null,null,null,9,"HACER CLIC AL BOTÓN ABAJO 16 VECES",26]
[null,null,null,null,null,null,9,"HACER CLIC AL BOTÓN ABAJO 17 VECES",27]
[null,null,null,null,null,null,9,"HACER CLIC AL BOTÓN ABAJO 18 VECES",28]
[null,null,null,null,null,null,9,"HACER CLIC AL BOTÓN ABAJO 19 VECES",29]
[null,null,null,null,null,null,9,"HACER CLIC AL BOTÓN ABAJO 20 VECES",30]
[null,null,null,null,null,null,9,"HACER CLIC AL BOTÓN ABAJO 21 VECES",31]
[null,null,null,null,null,null,9,"HACER CLIC AL BOTÓN ABAJO 22 VECES",32]
[null,null,null,null,null,null,10,"ACAHAY",1]
[null,null,null,null,null,null,10,"CAAPUCÚ",2]
[null,null,null,null,null,null,10,"CARAPEGUÁ",3]
[null,null,null,null,null,null,10,"ESCOBAR",4]
[null,null,null,null,null,null,10,"GENERAL BERNARDINO CABALLERO",5]
[null,null,null,null,null,null,10,"LA COLMENA",6]
[null,null,null,null,null,null,10,"MBUYAPEY",7]
[null,null,null,null,null,null,10,"PARAGUARÍ",8]
[null,null,null,null,null,null,10,"PIRAYU",9]
[null,null,null,null,null,null,10,"QUIINDY",10]
[null,null,null,null,null,null,10,"QUYQUYHO",11]
[null,null,null,null,null,null,10,"SAN ROQUE GONZÁLEZ DE SANTA CRUZ",12]
[null,null,null,null,null,null,10,"SAPUCAI",13]
[null,null,null,null,null,null,10,"TEBICUARY-MI",14]
[null,null,null,null,null,null,10,"YAGUARON",15]
[null,null,null,null,null,null,10,"YBYCUI",16]
[null,null,null,null,null,null,10,"YBYTYMI",17]
[null,null,null,null,null,null,10,"HACER CLIC AL BOTÓN ABAJO 1 VEZ",18]
[null,null,null,null,null,null,10,"HACER CLIC AL BOTÓN ABAJO 2 VECES",19]
[null,null,null,null,null,null,10,"HACER CLIC AL BOTÓN ABAJO 3 VECES",20]
[null,null,null,null,null,null,10,"HACER CLIC AL BOTÓN ABAJO 4 VECES",21]
[null,null,null,null,null,null,10,"HACER CLIC AL BOTÓN ABAJO 5 VECES",22]
[null,null,null,null,null,null,10,"HACER CLIC AL BOTÓN ABAJO 6 VECES",23]
[null,null,null,null,null,null,10,"HACER CLIC AL BOTÓN ABAJO 7 VECES",24]
[null,null,null,null,null,null,10,"HACER CLIC AL BOTÓN ABAJO 8 VECES",25]
[null,null,null,null,null,null,10,"HACER CLIC AL BOTÓN ABAJO 9 VECES",26]
[null,null,null,null,null,null,10,"HACER CLIC AL BOTÓN ABAJO 10 VECES",27]
[null,null,null,null,null,null,10,"HACER CLIC AL BOTÓN ABAJO 11 VECES",28]
[null,null,null,null,null,null,10,"HACER CLIC AL BOTÓN ABAJO 12 VECES",29]
[null,null,null,null,null,null,10,"HACER CLIC AL BOTÓN ABAJO 13 VECES",30]
[null,null,null,null,null,null,10,"HACER CLIC AL BOTÓN ABAJO 14 VECES",31]
[null,null,null,null,null,null,10,"HACER CLIC AL BOTÓN ABAJO 15 VECES",32]
[null,null,null,null,null,null,11,"ABAI",1]
[null,null,null,null,null,null,11,"BUENA VISTA",2]
[null,null,null,null,null,null,11,"CAAZAPÁ",3]
[null,null,null,null,null,null,11,"CORONEL MACIEL",4]
[null,null,null,null,null,null,11,"FULGENCIO YEGROS",5]
[null,null,null,null,null,null,11,"GENERAL HIGINIO MORÍNIGO",6]
[null,null,null,null,null,null,11,"MOISÉS SANTIAGO BERTONI",7]
[null,null,null,null,null,null,11,"SAN AGUSTÍN",8]
[null,null,null,null,null,null,11,"SAN JUAN NEPOMUCENO",9]
[null,null,null,null,null,null,11,"TAVAI",10]
[null,null,null,null,null,null,11,"TUPA RENDA",11]
[null,null,null,null,null,null,11,"3 DE MAYO",12]
[null,null,null,null,null,null,11,"YUTY",13]
[null,null,null,null,null,null,11,"HACER CLIC AL BOTÓN ABAJO 1 VEZ",14]
[null,null,null,null,null,null,11,"HACER CLIC AL BOTÓN ABAJO 2 VECES",15]
[null,null,null,null,null,null,11,"HACER CLIC AL BOTÓN ABAJO 3 VECES",16]
[null,null,null,null,null,null,11,"HACER CLIC AL BOTÓN ABAJO 4 VECES",17]
[null,null,null,null,null,null,11,"HACER CLIC AL BOTÓN ABAJO 5 VECES",18]
[null,null,null,null,null,null,11,"HACER CLIC AL BOTÓN ABAJO 6 VECES",19]
[null,null,null,null,null,null,11,"HACER CLIC AL BOTÓN ABAJO 7 VECES",20]
[null,null,null,null,null,null,11,"HACER CLIC AL BOTÓN ABAJO 8 VECES",21]
[null,null,null,null,null,null,11,"HACER CLIC AL BOTÓN ABAJO 9 VECES",22]
[null,null,null,null,null,null,11,"HACER CLIC AL BOTÓN ABAJO 10 VECES",23]
[null,null,null,null,null,null,11,"HACER CLIC AL BOTÓN ABAJO 11 VECES",24]
[null,null,null,null,null,null,11,"HACER CLIC AL BOTÓN ABAJO 12 VECES",25]
[null,null,null,null,null,null,11,"HACER CLIC AL BOTÓN ABAJO 13 VECES",26]
[null,null,null,null,null,null,11,"HACER CLIC AL BOTÓN ABAJO 14 VECES",27]
[null,null,null,null,null,null,11,"HACER CLIC AL BOTÓN ABAJO 15 VECES",28]
[null,null,null,null,null,null,11,"HACER CLIC AL BOTÓN ABAJO 16 VECES",29]
[null,null,null,null,null,null,11,"HACER CLIC AL BOTÓN ABAJO 17 VECES",30]
[null,null,null,null,null,null,11,"HACER CLIC AL BOTÓN ABAJO 18 VECES",31]
[null,null,null,null,null,null,11,"HACER CLIC AL BOTÓN ABAJO 19 VECES",32]
[null,null,null,null,null,null,12," ANTEQUERA",1]
[null,null,null,null,null,null,12,"CAPIIBARY",2]
[null,null,null,null,null,null,12," COLONIA NAVIDAD",3]
[null,null,null,null,null,null,12,"CHORE",4]
[null,null,null,null,null,null,12," GENERAL ELIZARDO AQUINO",5]
[null,null,null,null,null,null,12,"GENERAL FRANCISCO ISIDORO RESQUÍN",6]
[null,null,null,null,null,null,12,"GUAJAYVI",7]
[null,null,null,null,null,null,12,"ITACURUBI DEL ROSARIO",8]
[null,null,null,null,null,null,12," LIBERACIÓN",9]
[null,null,null,null,null,null,12," LIMA",10]
[null,null,null,null,null,null,12,"NUEVA GERMANIA",11]
[null,null,null,null,null,null,12,"PUERTO YBAPOBO",12]
[null,null,null,null,null,null,12,"SAN ESTANISLAO",13]
[null,null,null,null,null,null,12," SAN PABLO",14]
[null,null,null,null,null,null,12," SAN PEDRO DE YCUAMANDYYÚ",15]
[null,null,null,null,null,null,12,"SAN ROSA DEL AGUARAY",16]
[null,null,null,null,null,null,12,"TACUATI",17]
[null,null,null,null,null,null,12,"UNIÓN",18]
[null,null,null,null,null,null,12,"25 DE DICIEMBRE",19]
[null,null,null,null,null,null,12," VILLA DEL ROSARIO",20]
[null,null,null,null,null,null,12," YATAITY DEL NORTE",21]
[null,null,null,null,null,null,12,"YRYBUCUA",22]
[null,null,null,null,null,null,12,"HACER CLIC AL BOTÓN ABAJO 1 VEZ",23]
[null,null,null,null,null,null,12,"HACER CLIC AL BOTÓN ABAJO 2 VECES",24]
[null,null,null,null,null,null,12,"HACER CLIC AL BOTÓN ABAJO 3 VECES",25]
[null,null,null,null,null,null,12,"HACER CLIC AL BOTÓN ABAJO 4 VECES",26]
[null,null,null,null,null,null,12,"HACER CLIC AL BOTÓN ABAJO 5 VECES",27]
[null,null,null,null,null,null,12,"HACER CLIC AL BOTÓN ABAJO 6 VECES",28]
[null,null,null,null,null,null,12,"HACER CLIC AL BOTÓN ABAJO 7 VECES",29]
[null,null,null,null,null,null,12,"HACER CLIC AL BOTÓN ABAJO 8 VECES",30]
[null,null,null,null,null,null,12,"HACER CLIC AL BOTÓN ABAJO 9 VECES",31]
[null,null,null,null,null,null,12,"HACER CLIC AL BOTÓN ABAJO 10 VECES",32]
[null,null,null,null,null,null,13,"ALTOS",1]
[null,null,null,null,null,null,13,"ARROYOS Y ESTEROS",2]
[null,null,null,null,null,null,13,"ATYRA",3]
[null,null,null,null,null,null,13,"CAACUPÉ",4]
[null,null,null,null,null,null,13,"CARAGUATAY",5]
[null,null,null,null,null,null,13,"EMBOSCADA",6]
[null,null,null,null,null,null,13,"EUSEBIO AYALA",7]
[null,null,null,null,null,null,13,"ITACURUBI DE LA CORDILLERA",8]
[null,null,null,null,null,null,13,"ISLA PACÚ",9]
[null,null,null,null,null,null,13,"JUAN DE MENA",10]
[null,null,null,null,null,null,13,"LOMA GRANDE",11]
[null,null,null,null,null,null,13,"MBOCAYATY DEL YHAGUY",12]
[null,null,null,null,null,null,13,"NUEVA COLOMBIA",13]
[null,null,null,null,null,null,13,"PIRIBEBUY",14]
[null,null,null,null,null,null,13,"PRIMERO DE MARZO",15]
[null,null,null,null,null,null,13,"SAN BERNARDINO",16]
[null,null,null,null,null,null,13,"SAN JOSÉ OBRERO",17]
[null,null,null,null,null,null,13,"SANTA ELENA",18]
[null,null,null,null,null,null,13,"TOBATI",19]
[null,null,null,null,null,null,13,"VALENZUELA",20]
[null,null,null,null,null,null,13,"HACER CLIC AL BOTÓN ABAJO 1 VEZ",21]
[null,null,null,null,null,null,13,"HACER CLIC AL BOTÓN ABAJO 2 VECES",22]
[null,null,null,null,null,null,13,"HACER CLIC AL BOTÓN ABAJO 3 VECES",23]
[null,null,null,null,null,null,13,"HACER CLIC AL BOTÓN ABAJO 4 VECES",24]
[null,null,null,null,null,null,13,"HACER CLIC AL BOTÓN ABAJO 5 VECES",25]
[null,null,null,null,null,null,13,"HACER CLIC AL BOTÓN ABAJO 6 VECES",26]
[null,null,null,null,null,null,13,"HACER CLIC AL BOTÓN ABAJO 7 VECES",27]
[null,null,null,null,null,null,13,"HACER CLIC AL BOTÓN ABAJO 8 VECES",28]
[null,null,null,null,null,null,13,"HACER CLIC AL BOTÓN ABAJO 9 VECES",29]
[null,null,null,null,null,null,13,"HACER CLIC AL BOTÓN ABAJO 10 VECES",30]
[null,null,null,null,null,null,13,"HACER CLIC AL BOTÓN ABAJO 11 VECES",31]
[null,null,null,null,null,null,13,"HACER CLIC AL BOTÓN ABAJO 12 VECES",32]
[null,null,null,null,null,null,14,"BENJAMÍN ACEVAL",1]
[null,null,null,null,null,null,14,"CADETE PASTOR PANDO",2]
[null,null,null,null,null,null,14,"CAMPO ACEVAL",3]
[null,null,null,null,null,null,14,"FORTÍN GENERAL BERNARDINO CABALLERO",4]
[null,null,null,null,null,null,14,"FORTÍN GENERAL EDUVIGIS DÍAZ",5]
[null,null,null,null,null,null,14,"GENERAL JOSÉ MARÍA BRUGUEZ",6]
[null,null,null,null,null,null,14,"JOSÉ FALCÓN",7]
[null,null,null,null,null,null,14,"NANAWA",8]
[null,null,null,null,null,null,14,"NUEVA ASUNCIÓN",9]
[null,null,null,null,null,null,14,"PUERTO PINASCO",10]
[null,null,null,null,null,null,14,"REMANSITO",11]
[null,null,null,null,null,null,14,"RÍO VERDE",12]
[null,null,null,null,null,null,14,"TENIENTE ADOLFO ROJAS SILVA",13]
[null,null,null,null,null,null,14,"TENIENTE ESTEBAN MARTÍNEZ",14]
[null,null,null,null,null,null,14,"TENIENTE PRIMERO MANUEL IRALA FERNÁNDEZ",15]
[null,null,null,null,null,null,14,"VILLA HAYES",16]
[null,null,null,null,null,null,14,"HACER CLIC AL BOTÓN ABAJO 1 VEZ",17]
[null,null,null,null,null,null,14,"HACER CLIC AL BOTÓN ABAJO 2 VECES",18]
[null,null,null,null,null,null,14,"HACER CLIC AL BOTÓN ABAJO 3 VECES",19]
[null,null,null,null,null,null,14,"HACER CLIC AL BOTÓN ABAJO 4 VECES",20]
[null,null,null,null,null,null,14,"HACER CLIC AL BOTÓN ABAJO 5 VECES",21]
[null,null,null,null,null,null,14,"HACER CLIC AL BOTÓN ABAJO 6 VECES",22]
[null,null,null,null,null,null,14,"HACER CLIC AL BOTÓN ABAJO 7 VECES",23]
[null,null,null,null,null,null,14,"HACER CLIC AL BOTÓN ABAJO 8 VECES",24]
[null,null,null,null,null,null,14,"HACER CLIC AL BOTÓN ABAJO 9 VECES",25]
[null,null,null,null,null,null,14,"HACER CLIC AL BOTÓN ABAJO 10 VECES",26]
[null,null,null,null,null,null,14,"HACER CLIC AL BOTÓN ABAJO 11 VECES",27]
[null,null,null,null,null,null,14,"HACER CLIC AL BOTÓN ABAJO 12 VECES",28]
[null,null,null,null,null,null,14,"HACER CLIC AL BOTÓN ABAJO 13 VECES",29]
[null,null,null,null,null,null,14,"HACER CLIC AL BOTÓN ABAJO 14 VECES",30]
[null,null,null,null,null,null,14,"HACER CLIC AL BOTÓN ABAJO 15 VECES",31]
[null,null,null,null,null,null,14,"HACER CLIC AL BOTÓN ABAJO 16 VECES",32]
[null,null,null,null,null,null,14,"HACER CLIC AL BOTÓN ABAJO 17 VECES",33]
[null,null,null,null,null,null,15,"CORPUS CRISTHI ",1]
[null,null,null,null,null,null,15,"CURUGUATY",2]
[null,null,null,null,null,null,15,"FRANCISCO CABALLERO ÁLVAREZ  ",3]
[null,null,null,null,null,null,15,"ITANARÁ",4]
[null,null,null,null,null,null,15,"KATUETÉ",5]
[null,null,null,null,null,null,15,"NUEVA ESPERANZA ",6]
[null,null,null,null,null,null,15,"PUERTO ADELA",7]
[null,null,null,null,null,null,15,"SALTOS DEL GUAIRÁ",8]
[null,null,null,null,null,null,15,"VILLA YGATIMI",9]
[null,null,null,null,null,null,15,"YASY CAÑY",10]
[null,null,null,null,null,null,15,"YBY PYTÁ",11]
[null,null,null,null,null,null,15,"YPEJHÚ",12]
[null,null,null,null,null,null,15,"HACER CLIC AL BOTÓN ABAJO 1 VEZ",13]
[null,null,null,null,null,null,15,"HACER CLIC AL BOTÓN ABAJO 2 VECES",14]
[null,null,null,null,null,null,15,"HACER CLIC AL BOTÓN ABAJO 3 VECES",15]
[null,null,null,null,null,null,15,"HACER CLIC AL BOTÓN ABAJO 4 VECES",16]
[null,null,null,null,null,null,15,"HACER CLIC AL BOTÓN ABAJO 5 VECES",17]
[null,null,null,null,null,null,15,"HACER CLIC AL BOTÓN ABAJO 6 VECES",18]
[null,null,null,null,null,null,15,"HACER CLIC AL BOTÓN ABAJO 7 VECES",19]
[null,null,null,null,null,null,15,"HACER CLIC AL BOTÓN ABAJO 8 VECES",20]
[null,null,null,null,null,null,15,"HACER CLIC AL BOTÓN ABAJO 9 VECES",21]
[null,null,null,null,null,null,15,"HACER CLIC AL BOTÓN ABAJO 10 VECES",22]
[null,null,null,null,null,null,15,"HACER CLIC AL BOTÓN ABAJO 11 VECES",23]
[null,null,null,null,null,null,15,"HACER CLIC AL BOTÓN ABAJO 12 VECES",24]
[null,null,null,null,null,null,15,"HACER CLIC AL BOTÓN ABAJO 13 VECES",25]
[null,null,null,null,null,null,15,"HACER CLIC AL BOTÓN ABAJO 14 VECES",26]
[null,null,null,null,null,null,15,"HACER CLIC AL BOTÓN ABAJO 15 VECES",27]
[null,null,null,null,null,null,15,"HACER CLIC AL BOTÓN ABAJO 16 VECES",28]
[null,null,null,null,null,null,15,"HACER CLIC AL BOTÓN ABAJO 17 VECES",29]
[null,null,null,null,null,null,15,"HACER CLIC AL BOTÓN ABAJO 18 VECES",30]
[null,null,null,null,null,null,15,"HACER CLIC AL BOTÓN ABAJO 19 VECES",31]
[null,null,null,null,null,null,15,"HACER CLIC AL BOTÓN ABAJO 20 VECES",32]
[null,null,null,null,null,null,16,"AREGUÁ",1]
[null,null,null,null,null,null,16,"CAPIATÁ",2]
[null,null,null,null,null,null,16,"FERNANDO DE LA MORA",3]
[null,null,null,null,null,null,16,"GUARAMBARÉ",4]
[null,null,null,null,null,null,16,"ITÁ",5]
[null,null,null,null,null,null,16,"ITAUGUÁ",6]
[null,null,null,null,null,null,16,"JULIÁN AUGUSTO SALDÍVAR",7]
[null,null,null,null,null,null,16,"LAMBARÉ",8]
[null,null,null,null,null,null,16,"LIMPIO",9]
[null,null,null,null,null,null,16,"LUQUE",10]
[null,null,null,null,null,null,16,"MARIANO ROQUE ALONSO",11]
[null,null,null,null,null,null,16,"NUEVA ITALIA",12]
[null,null,null,null,null,null,16,"ÑEMBY",13]
[null,null,null,null,null,null,16,"SAN ANTONIO",14]
[null,null,null,null,null,null,16,"SAN LORENZO",15]
[null,null,null,null,null,null,16,"VILLA ELISA",16]
[null,null,null,null,null,null,16,"VILLETA",17]
[null,null,null,null,null,null,16,"YPACARAÍ",18]
[null,null,null,null,null,null,16,"YPANÉ",19]
[null,null,null,null,null,null,16,"HACER CLIC AL BOTÓN ABAJO 1 VEZ",20]
[null,null,null,null,null,null,16,"HACER CLIC AL BOTÓN ABAJO 2 VECES",21]
[null,null,null,null,null,null,16,"HACER CLIC AL BOTÓN ABAJO 3 VECES",22]
[null,null,null,null,null,null,16,"HACER CLIC AL BOTÓN ABAJO 4 VECES",23]
[null,null,null,null,null,null,16,"HACER CLIC AL BOTÓN ABAJO 5 VECES",24]
[null,null,null,null,null,null,16,"HACER CLIC AL BOTÓN ABAJO 6 VECES",25]
[null,null,null,null,null,null,16,"HACER CLIC AL BOTÓN ABAJO 7 VECES",26]
[null,null,null,null,null,null,16,"HACER CLIC AL BOTÓN ABAJO 8 VECES",27]
[null,null,null,null,null,null,16,"HACER CLIC AL BOTÓN ABAJO 9 VECES",28]
[null,null,null,null,null,null,16,"HACER CLIC AL BOTÓN ABAJO 10 VECES",29]
[null,null,null,null,null,null,16,"HACER CLIC AL BOTÓN ABAJO 11 VECES",30]
[null,null,null,null,null,null,16,"HACER CLIC AL BOTÓN ABAJO 12 VECES",31]
[null,null,null,null,null,null,16,"HACER CLIC AL BOTÓN ABAJO 13 VECES",32]
[null,null,null,null,null,null,17,"CAPITÁN JOEL ESTIGARRIBIA",1]
[null,null,null,null,null,null,17,"ESTANCIA LA PATRIA",2]
[null,null,null,null,null,null,17,"FILADELFIA",3]
[null,null,null,null,null,null,17,"LOMA PLATA",4]
[null,null,null,null,null,null,17,"MARISCAL ESTIGARRIBIA",5]
[null,null,null,null,null,null,17,"NEULAND",6]
[null,null,null,null,null,null,17,"POZO HONDO-MARISCAL ESTIGARRIBIA",7]
[null,null,null,null,null,null,17,"HACER CLIC AL BOTÓN ABAJO 1 VEZ",8]
[null,null,null,null,null,null,17,"HACER CLIC AL BOTÓN ABAJO 2 VECES",9]
[null,null,null,null,null,null,17,"HACER CLIC AL BOTÓN ABAJO 3 VECES",10]
[null,null,null,null,null,null,17,"HACER CLIC AL BOTÓN ABAJO 4 VECES",11]
[null,null,null,null,null,null,17,"HACER CLIC AL BOTÓN ABAJO 5 VECES",12]
[null,null,null,null,null,null,17,"HACER CLIC AL BOTÓN ABAJO 6 VECES",13]
[null,null,null,null,null,null,17,"HACER CLIC AL BOTÓN ABAJO 7 VECES",14]
[null,null,null,null,null,null,17,"HACER CLIC AL BOTÓN ABAJO 8 VECES",15]
[null,null,null,null,null,null,17,"HACER CLIC AL BOTÓN ABAJO 9 VECES",16]
[null,null,null,null,null,null,17,"HACER CLIC AL BOTÓN ABAJO 10 VECES",17]
[null,null,null,null,null,null,17,"HACER CLIC AL BOTÓN ABAJO 11 VECES",18]
[null,null,null,null,null,null,17,"HACER CLIC AL BOTÓN ABAJO 12 VECES",19]
[null,null,null,null,null,null,17,"HACER CLIC AL BOTÓN ABAJO 13 VECES",20]
[null,null,null,null,null,null,17,"HACER CLIC AL BOTÓN ABAJO 14 VECES",21]
[null,null,null,null,null,null,17,"HACER CLIC AL BOTÓN ABAJO 15 VECES",22]
[null,null,null,null,null,null,17,"HACER CLIC AL BOTÓN ABAJO 16 VECES",23]
[null,null,null,null,null,null,17,"HACER CLIC AL BOTÓN ABAJO 17 VECES",24]
[null,null,null,null,null,null,17,"HACER CLIC AL BOTÓN ABAJO 18 VECES",25]
[null,null,null,null,null,null,17,"HACER CLIC AL BOTÓN ABAJO 19 VECES",26]
[null,null,null,null,null,null,17,"HACER CLIC AL BOTÓN ABAJO 20 VECES",27]
[null,null,null,null,null,null,17,"HACER CLIC AL BOTÓN ABAJO 21 VECES",28]
[null,null,null,null,null,null,17,"HACER CLIC AL BOTÓN ABAJO 22 VECES",29]
[null,null,null,null,null,null,17,"HACER CLIC AL BOTÓN ABAJO 23 VECES",30]
[null,null,null,null,null,null,17,"HACER CLIC AL BOTÓN ABAJO 24 VECES",31]
[null,null,null,null,null,null,17,"HACER CLIC AL BOTÓN ABAJO 25 VECES",32]
[null,null,null,null,null,null,18,"BAHÍA NEGRA",1]
[null,null,null,null,null,null,18,"CARMELO PERALTA",2]
[null,null,null,null,null,null,18,"FUERTE OLIMPO",3]
[null,null,null,null,null,null,18,"PUERTO CASADO",4]
[null,null,null,null,null,null,18,"PUERTO GUARANÍ",5]
[null,null,null,null,null,null,18,"PUERTO LA ESPERANZA",6]
[null,null,null,null,null,null,18,"TORO PAMPA",7]
[null,null,null,null,null,null,18,"HACER CLIC AL BOTÓN ABAJO 1 VEZ",8]
[null,null,null,null,null,null,18,"HACER CLIC AL BOTÓN ABAJO 2 VECES",9]
[null,null,null,null,null,null,18,"HACER CLIC AL BOTÓN ABAJO 3 VECES",10]
[null,null,null,null,null,null,18,"HACER CLIC AL BOTÓN ABAJO 4 VECES",11]
[null,null,null,null,null,null,18,"HACER CLIC AL BOTÓN ABAJO 5 VECES",12]
[null,null,null,null,null,null,18,"HACER CLIC AL BOTÓN ABAJO 6 VECES",13]
[null,null,null,null,null,null,18,"HACER CLIC AL BOTÓN ABAJO 7 VECES",14]
[null,null,null,null,null,null,18,"HACER CLIC AL BOTÓN ABAJO 8 VECES",15]
[null,null,null,null,null,null,18,"HACER CLIC AL BOTÓN ABAJO 9 VECES",16]
[null,null,null,null,null,null,18,"HACER CLIC AL BOTÓN ABAJO 10 VECES",17]
[null,null,null,null,null,null,18,"HACER CLIC AL BOTÓN ABAJO 11 VECES",18]
[null,null,null,null,null,null,18,"HACER CLIC AL BOTÓN ABAJO 12 VECES",19]
[null,null,null,null,null,null,18,"HACER CLIC AL BOTÓN ABAJO 13 VECES",20]
[null,null,null,null,null,null,18,"HACER CLIC AL BOTÓN ABAJO 14 VECES",21]
[null,null,null,null,null,null,18,"HACER CLIC AL BOTÓN ABAJO 15 VECES",22]
[null,null,null,null,null,null,18,"HACER CLIC AL BOTÓN ABAJO 16 VECES",23]
[null,null,null,null,null,null,18,"HACER CLIC AL BOTÓN ABAJO 17 VECES",24]
[null,null,null,null,null,null,18,"HACER CLIC AL BOTÓN ABAJO 18 VECES",25]
[null,null,null,null,null,null,18,"HACER CLIC AL BOTÓN ABAJO 19 VECES",26]
[null,null,null,null,null,null,18,"HACER CLIC AL BOTÓN ABAJO 20 VECES",27]
[null,null,null,null,null,null,18,"HACER CLIC AL BOTÓN ABAJO 21 VECES",28]
[null,null,null,null,null,null,18,"HACER CLIC AL BOTÓN ABAJO 22 VECES",29]
[null,null,null,null,null,null,18,"HACER CLIC AL BOTÓN ABAJO 23 VECES",30]
[null,null,null,null,null,null,18,"HACER CLIC AL BOTÓN ABAJO 24 VECES",31]
[null,null,null,null,null,null,18,"HACER CLIC AL BOTÓN ABAJO 26 VECES",32]